Workbook

Sheet 龙陵分公司2季度
A1: 保山电力龙陵分公司2024年二季度配电网接入能力公示表
A2: 序号 | B2: 设备名称（准确、完整描述配变名称） | C2: 电压等级(kV) | D2: 季度平均负载率（%） | E2: 最大负载率（%） | F2: 负载情况（轻载、重载、过载） | G2: 可开放容量(kVA) | H2: 是否接入受限（是/否） | I2: 覆盖区域（以“县区-乡镇或街道办-村委会或社区-村或小区”的地址层级进行公示）
A3: 1 | B3: 邦别村半坡变 | C3: 10kV | D3: 13.52 | E3: 40.56 | F3: 轻载 | G3: 62 | H3: 否 | I3: 邦别村
A4: 2 | B4: 邦别村邦别村公所变 | C4: 10kV | D4: 27.95 | E4: 83.84 | F4: 轻载 | G4: 130 | H4: 否 | I4: 邦别村
A5: 3 | B5: 邦别村龙塘变 | C5: 10kV | D5: 18.14 | E5: 54.43 | F5: 轻载 | G5: 37 | H5: 否 | I5: 邦别村
A6: 4 | B6: 帮别村蚂蝗箐变 | C6: 10kV | D6: 11.57 | E6: 34.71 | F6: 轻载 | G6: 24 | H6: 否 | I6: 邦别村
A7: 5 | B7: 邦别村三岔路移民新村1#变 | C7: 10kV | D7: 26.13 | E7: 78.38 | F7: 轻载 | G7: 106 | H7: 否 | I7: 邦别村
A8: 6 | B8: 邦别村三岔路移民新村2#变 | C8: 10kV | D8: 22.91 | E8: 68.75 | F8: 轻载 | G8: 139 | H8: 否 | I8: 邦别村
A9: 7 | B9: 邦别村三岔路移民新村3#变 | C9: 10kV | D9: 15.01 | E9: 45.03 | F9: 轻载 | G9: 153 | H9: 否 | I9: 邦别村
A10: 8 | B10: 邦别村水沟变 | C10: 10kV | D10: 52.66 | E10: 157.98 | F10: 经济运行 | G10: 21 | H10: 否 | I10: 邦别村
A11: 9 | B11: 邦别村小学变 | C11: 10kV | D11: 31.27 | E11: 93.81 | F11: 经济运行 | G11: 49 | H11: 否 | I11: 邦别村
A12: 10 | B12: 邦别村荞地变 | C12: 10kV | D12: 17.66 | E12: 53.00 | F12: 轻载 | G12: 59 | H12: 否 | I12: 邦别村
A13: 11 | B13: 邦别村橄榄坪变 | C13: 10kV | D13: 12.14 | E13: 36.41 | F13: 轻载 | G13: 249 | H13: 否 | I13: 邦别村
A14: 12 | B14: 邦别村新田坝变 | C14: 10kV | D14: 41.82 | E14: 125.47 | F14: 经济运行 | G14: 42 | H14: 否 | I14: 邦别村
A15: 13 | B15: 户帕村常兴变 | C15: 10kV | D15: 11.42 | E15: 34.25 | F15: 轻载 | G15: 64 | H15: 否 | I15: 户帕村
A16: 14 | B16: 户帕村村公所变 | C16: 10kV | D16: 17.56 | E16: 52.68 | F16: 轻载 | G16: 37 | H16: 否 | I16: 户帕村
A17: 15 | B17: 户帕村大水井变 | C17: 10kV | D17: 16.52 | E17: 48.75 | F17: 轻载 | G17: 23 | H17: 否 | I17: 户帕村
A18: 16 | B18: 户帕村老箐头变 | C18: 10kV | D18: 23.2 | E18: 69.60 | F18: 轻载 | G18: 35 | H18: 否 | I18: 户帕村
A19: 17 | B19: 户帕村蛮老洼变 | C19: 10kV | D19: 20.84 | E19: 62.53 | F19: 轻载 | G19: 36 | H19: 否 | I19: 户帕村
A20: 18 | B20: 户帕村青树寨变 | C20: 10kV | D20: 17.54 | E20: 52.61 | F20: 轻载 | G20: 93 | H20: 否 | I20: 户帕村
A21: 19 | B21: 户帕村三眼井变 | C21: 10kV | D21: 34.22 | E21: 102.65 | F21: 经济运行 | G21: 30 | H21: 否 | I21: 户帕村
A22: 20 | B22: 户帕村苏家田变 | C22: 10kV | D22: 22.08 | E22: 66.25 | F22: 轻载 | G22: 56 | H22: 否 | I22: 户帕村
A23: 21 | B23: 户帕村云头变 | C23: 10kV | D23: 34.35 | E23: 103.06 | F23: 经济运行 | G23: 47 | H23: 否 | I23: 户帕村
A24: 22 | B24: 岭干村丛干变 | C24: 10kV | D24: 10.86 | E24: 32.59 | F24: 轻载 | G24: 160 | H24: 否 | I24: 岭干村
A25: 23 | B25: 岭干村村公所变 | C25: 10kV | D25: 6.88 | E25: 20.64 | F25: 轻载 | G25: 264 | H25: 否 | I25: 岭干村
A26: 24 | B26: 岭干村金竹园变 | C26: 10kV | D26: 9.17 | E26: 27.52 | F26: 轻载 | G26: 131 | H26: 否 | I26: 岭干村
A27: 25 | B27: 岭干村栗树寨变 | C27: 10kV | D27: 1.1 | E27: 3.31 | F27: 轻载 | G27: 178 | H27: 否 | I27: 岭干村
A28: 26 | B28: 岭干村坡头1#变 | C28: 10kV | D28: 0.59 | E28: 1.79 | F28: 轻载 | G28: 89 | H28: 否 | I28: 岭干村
A29: 27 | B29: 岭干村坡头2#变 | C29: 10kV | D29: 1.13 | E29: 3.38 | F29: 轻载 | G29: 89 | H29: 否 | I29: 岭干村
A30: 28 | B30: 岭干村团坡变 | C30: 10kV | D30: 6.71 | E30: 20.14 | F30: 轻载 | G30: 168 | H30: 否 | I30: 岭干村
A31: 29 | B31: 岭干村白虎山 | C31: 10kV | D31: 6.1 | E31: 18.32 | F31: 轻载 | G31: 135 | H31: 否 | I31: 岭干村
A32: 30 | B32: 岭干村干水田 | C32: 10kV | D32: 8.84 | E32: 26.51 | F32: 轻载 | G32: 82 | H32: 否 | I32: 岭干村
A33: 31 | B33: 镇宝村大岭岗变 | C33: 10kV | D33: 7.35 | E33: 22.05 | F33: 轻载 | G33: 167 | H33: 否 | I33: 镇宝村
A34: 32 | B34: 镇宝村毛草地变 | C34: 10kV | D34: 9.07 | E34: 27.22 | F34: 轻载 | G34: 164 | H34: 否 | I34: 镇宝村
A35: 33 | B35: 镇宝村大荞地变 | C35: 10kV | D35: 9.17 | E35: 27.5 | F35: 轻载 | G35: 131 | H35: 否 | I35: 镇宝村
A36: 34 | B36: 竹箐村白坟变 | C36: 10kV | D36: 12.43 | E36: 37.28 | F36: 轻载 | G36: 79 | H36: 否 | I36: 竹箐村
A37: 35 | B37: 竹箐村村公所变 | C37: 10kV | D37: 13.45 | E37: 40.36 | F37: 轻载 | G37: 245 | H37: 否 | I37: 竹箐村
A38: 36 | B38: 竹箐村李家寨变 | C38: 10kV | D38: 8.19 | E38: 24.56 | F38: 轻载 | G38: 83 | H38: 否 | I38: 竹箐村
A39: 37 | B39: 竹箐村邱坡变 | C39: 10kV | D39: 2.29 | E39: 6.86 | F39: 轻载 | G39: 277 | H39: 否 | I39: 竹箐村
A40: 38 | B40: 竹箐村小荒田变 | C40: 10kV | D40: 10.09 | E40: 30.28 | F40: 轻载 | G40: 81 | H40: 否 | I40: 竹箐村
A41: 39 | B41: 竹箐村小街变 | C41: 10kV | D41: 6.58 | E41: 19.73 | F41: 轻载 | G41: 135 | H41: 否 | I41: 竹箐村
A42: 40 | B42: 竹箐村小寨1#变 | C42: 10kV | D42: 5.71 | E42: 17.15 | F42: 轻载 | G42: 85 | H42: 否 | I42: 竹箐村
A43: 41 | B43: 竹箐村小寨2#变 | C43: 10kV | D43: 9.48 | E43: 28.45 | F43: 轻载 | G43: 81 | H43: 否 | I43: 竹箐村
A44: 42 | B44: 竹箐村竹箐变 | C44: 10kV | D44: 3.75 | E44: 11.25 | F44: 轻载 | G44: 273 | H44: 否 | I44: 竹箐村
A45: 43 | B45: 竹箐村竹箐头变 | C45: 10kV | D45: 4.22 | E45: 12.66 | F45: 轻载 | G45: 216 | H45: 否 | I45: 竹箐村
A46: 44 | B46: 正平村村公所变 | C46: 10kV | D46: 14.68 | E46: 44.04 | F46: 轻载 | G46: 154 | H46: 否 | I46: 正平村
A47: 45 | B47: 正平村大摆田变 | C47: 10kV | D47: 9.39 | E47: 28.18 | F47: 轻载 | G47: 82 | H47: 否 | I47: 正平村
A48: 46 | B48: 正平村大河头变 | C48: 10kV | D48: 5.55 | E48: 16.66 | F48: 轻载 | G48: 85 | H48: 否 | I48: 正平村
A49: 47 | B49: 正平村河西变 | C49: 10kV | D49: 6.67 | E49: 20.02 | F49: 轻载 | G49: 134 | H49: 否 | I49: 正平村
A50: 48 | B50: 正平村松坡变 | C50: 10kV | D50: 10.61 | E50: 31.82 | F50: 轻载 | G50: 253 | H50: 否 | I50: 正平村
A51: 49 | B51: 邦迈村邦迈街子变 | C51: 10kV | D51: 15.61 | E51: 46.84 | F51: 轻载 | G51: 239 | H51: 否 | I51: 邦迈村
A52: 50 | B52: 邦迈村番寨园变 | C52: 10kV | D52: 9.1 | E52: 27.30 | F52: 轻载 | G52: 82 | H52: 否 | I52: 邦迈村
A53: 51 | B53: 邦迈村郭兰寨变 | C53: 10kV | D53: 11.4 | E53: 34.19 | F53: 轻载 | G53: 128 | H53: 否 | I53: 邦迈村
A54: 52 | B54: 邦迈村花寨变 | C54: 10kV | D54: 6.8 | E54: 20.40 | F54: 轻载 | G54: 210 | H54: 否 | I54: 邦迈村
A55: 53 | B55: 邦迈村老表寨变 | C55: 10kV | D55: 9.03 | E55: 27.09 | F55: 轻载 | G55: 131 | H55: 否 | I55: 邦迈村
A56: 54 | B56: 邦迈村木瓜林变 | C56: 10kV | D56: 6.37 | E56: 19.10 | F56: 轻载 | G56: 84 | H56: 否 | I56: 邦迈村
A57: 55 | B57: 邦迈村阳广1#变 | C57: 10kV | D57: 2.53 | E57: 7.59 | F57: 轻载 | G57: 140 | H57: 否 | I57: 邦迈村
A58: 56 | B58: 邦迈村阳广2#变 | C58: 10kV | D58: 10.45 | E58: 31.34 | F58: 轻载 | G58: 129 | H58: 否 | I58: 邦迈村
A59: 57 | B59: 邦迈村云盘山变 | C59: 10kV | D59: 5.17 | E59: 15.51 | F59: 轻载 | G59: 137 | H59: 否 | I59: 邦迈村
A60: 58 | B60: 邦迈村赵家坡变 | C60: 10kV | D60: 7.59 | E60: 22.76 | F60: 轻载 | G60: 208 | H60: 否 | I60: 邦迈村
A61: 59 | B61: 邦迈村周家寨变 | C61: 10kV | D61: 4.88 | E61: 14.66 | F61: 轻载 | G61: 171 | H61: 否 | I61: 邦迈村
A62: 60 | B62: 邦迈村瓦窑变 | C62: 10kV | D62: 7.38 | E62: 22.15 | F62: 轻载 | G62: 167 | H62: 否 | I62: 邦迈村
A63: 61 | B63: 邦迈村线那变 | C63: 10kV | D63: 8.94 | E63: 26.81 | F63: 轻载 | G63: 82 | H63: 否 | I63: 邦迈村
A64: 62 | B64: 回欢村村公所1#变 | C64: 10kV | D64: 6.08 | E64: 18.25 | F64: 轻载 | G64: 266 | H64: 否 | I64: 回欢村
A65: 63 | B65: 回欢村村公所2#变 | C65: 10kV | D65: 7.66 | E65: 22.99 | F65: 轻载 | G65: 262 | H65: 否 | I65: 回欢村
A66: 64 | B66: 回欢村独横沟变 | C66: 10kV | D66: 18.43 | E66: 55.28 | F66: 轻载 | G66: 37 | H66: 否 | I66: 回欢村
A67: 65 | B67: 回欢村番家寨变 | C67: 10kV | D67: 7.66 | E67: 22.99 | F67: 轻载 | G67: 262 | H67: 否 | I67: 回欢村
A68: 66 | B68: 回欢村高寨变 | C68: 10kV | D68: 5.75 | E68: 17.27 | F68: 轻载 | G68: 136 | H68: 否 | I68: 回欢村
A69: 67 | B69: 回欢村郭家寨变 | C69: 10kV | D69: 6.34 | E69: 19.01 | F69: 轻载 | G69: 266 | H69: 否 | I69: 回欢村
A70: 68 | B70: 回欢村汉滚塘变 | C70: 10kV | D70: 3.67 | E70: 11.00 | F70: 轻载 | G70: 87 | H70: 否 | I70: 回欢村
A71: 69 | B71: 回欢村老寨变 | C71: 10kV | D71: 14.04 | E71: 42.12 | F71: 轻载 | G71: 244 | H71: 否 | I71: 回欢村
A72: 70 | B72: 回欢村梁江洼变 | C72: 10kV | D72: 5.24 | E72: 15.71 | F72: 轻载 | G72: 136 | H72: 否 | I72: 回欢村
A73: 71 | B73: 回欢村麦嘎变 | C73: 10kV | D73: 7.9 | E73: 23.70 | F73: 轻载 | G73: 83 | H73: 否 | I73: 回欢村
A74: 72 | B74: 回欢村小滚塘变 | C74: 10kV | D74: 16.15 | E74: 48.45 | F74: 轻载 | G74: 38 | H74: 否 | I74: 回欢村
A75: 73 | B75: 回欢村中寨变 | C75: 10kV | D75: 10.21 | E75: 30.64 | F75: 轻载 | G75: 81 | H75: 否 | I75: 回欢村
A76: 74 | B76: 镇南村何上寨变 | C76: 10kV | D76: 10.54 | E76: 31.61 | F76: 轻载 | G76: 161 | H76: 否 | I76: 镇南村
A77: 75 | B77: 镇南村何下寨变 | C77: 10kV | D77: 15.05 | E77: 45.16 | F77: 轻载 | G77: 153 | H77: 否 | I77: 镇南村
A78: 76 | B78: 镇南村镇南1#变 | C78: 10kV | D78: 10.54 | E78: 31.61 | F78: 轻载 | G78: 161 | H78: 否 | I78: 镇南村
A79: 77 | B79: 镇南村镇南2#变 | C79: 10kV | D79: 6.11 | E79: 18.33 | F79: 轻载 | G79: 266 | H79: 否 | I79: 镇南村
A80: 78 | B80: 镇南村镇南3#变 | C80: 10kV | D80: 14.91 | E80: 44.73 | F80: 轻载 | G80: 153 | H80: 否 | I80: 镇南村
A81: 79 | B81: 镇东村麻棚变 | C81: 10kV | D81: 14.18 | E81: 42.54 | F81: 轻载 | G81: 23 | H81: 否 | I81: 镇东村
A82: 80 | B82: 八0八村打响坡变 | C82: 10kV | D82: 38.53 | E82: 115.58 | F82: 经济运行 | G82: 17 | H82: 否 | I82: 八0八村
A83: 81 | B83: 八0八村大烂坝变 | C83: 10kV | D83: 8.31 | E83: 24.94 | F83: 轻载 | G83: 206 | H83: 否 | I83: 八0八村
A84: 82 | B84: 八0八村干河变 | C84: 10kV | D84: 11.38 | E84: 34.14 | F84: 轻载 | G84: 160 | H84: 否 | I84: 八0八村
A85: 83 | B85: 八0八村拱洞1#变 | C85: 10kV | D85: 10.42 | E85: 31.25 | F85: 轻载 | G85: 64 | H85: 否 | I85: 八0八村
A86: 84 | B86: 八0八村河边寨变 | C86: 10kV | D86: 8.76 | E86: 26.28 | F86: 轻载 | G86: 205 | H86: 否 | I86: 八0八村
A87: 85 | B87: 八0八村横山变 | C87: 10kV | D87: 7.73 | E87: 23.18 | F87: 轻载 | G87: 83 | H87: 否 | I87: 八0八村
A88: 86 | B88: 八0八村烂澡塘变 | C88: 10kV | D88: 12.17 | E88: 36.50 | F88: 轻载 | G88: 79 | H88: 否 | I88: 八0八村
A89: 87 | B89: 八0八村麻水井变 | C89: 10kV | D89: 29.58 | E89: 88.75 | F89: 轻载 | G89: 32 | H89: 否 | I89: 八0八村
A90: 88 | B90: 八0八村坡头变 | C90: 10kV | D90: 11.56 | E90: 34.68 | F90: 轻载 | G90: 80 | H90: 否 | I90: 八0八村
A91: 89 | B91: 八0八村邵家寨变 | C91: 10kV | D91: 26.75 | E91: 80.25 | F91: 轻载 | G91: 33 | H91: 否 | I91: 八0八村
A92: 90 | B92: 八0八村小岩子1#变 | C92: 10kV | D92: 8.96 | E92: 26.89 | F92: 轻载 | G92: 66 | H92: 否 | I92: 八0八村
A93: 91 | B93: 大坝村大坝1#变 | C93: 10kV | D93: 10.99 | E93: 32.97 | F93: 轻载 | G93: 252 | H93: 否 | I93: 大坝村
A94: 92 | B94: 大坝村大坝2#变 | C94: 10kV | D94: 13.46 | E94: 40.39 | F94: 轻载 | G94: 245 | H94: 否 | I94: 大坝村
A95: 93 | B95: 大坝村大坝坪子变 | C95: 10kV | D95: 28.17 | E95: 84.52 | F95: 轻载 | G95: 129 | H95: 否 | I95: 大坝村
A96: 94 | B96: 大坝村汉坝变 | C96: 10kV | D96: 22.15 | E96: 66.44 | F96: 轻载 | G96: 70 | H96: 否 | I96: 大坝村
A97: 95 | B97: 大坝村老松树变 | C97: 10kV | D97: 8.85 | E97: 26.56 | F97: 轻载 | G97: 164 | H97: 否 | I97: 大坝村
A98: 96 | B98: 大坝村熊洞变 | C98: 10kV | D98: 5.38 | E98: 16.13 | F98: 轻载 | G98: 136 | H98: 否 | I98: 大坝村
A99: 97 | B99: 大坝村闫家寨1#变 | C99: 10kV | D99: 27.11 | E99: 81.34 | F99: 轻载 | G99: 131 | H99: 否 | I99: 大坝村
A100: 98 | B100: 大坝村闫家寨2#变 | C100: 10kV | D100: 16.19 | E100: 48.56 | F100: 轻载 | G100: 151 | H100: 否 | I100: 大坝村
A101: 99 | B101: 金河村芭蕉林变 | C101: 10kV | D101: 6.47 | E101: 19.42 | F101: 轻载 | G101: 25 | H101: 否 | I101: 淘金河村
A102: 100 | B102: 金河村刺竹坪变 | C102: 10kV | D102: 15.8 | E102: 47.40 | F102: 轻载 | G102: 38 | H102: 否 | I102: 淘金河村
A103: 101 | B103: 金河村村公所2#变 | C103: 10kV | D103: 9.01 | E103: 27.04 | F103: 轻载 | G103: 25 | H103: 否 | I103: 淘金河村
A104: 102 | B104: 金河村村公所变 | C104: 10kV | D104: 27.93 | E104: 83.81 | F104: 重载 | G104: 52 | H104: 否 | I104: 淘金河村
A105: 103 | B105: 金河村大蛇腰变 | C105: 10kV | D105: 6.01 | E105: 18.02 | F105: 轻载 | G105: 68 | H105: 否 | I105: 淘金河村
A106: 104 | B106: 金河村段家寨变 | C106: 10kV | D106: 7.56 | E106: 22.69 | F106: 轻载 | G106: 133 | H106: 否 | I106: 淘金河村
A107: 105 | B107: 金河村河边寨变 | C107: 10kV | D107: 14.71 | E107: 44.14 | F107: 轻载 | G107: 61 | H107: 否 | I107: 淘金河村
A108: 106 | B108: 金河村马槽洼变 | C108: 10kV | D108: 19.69 | E108: 59.08 | F108: 轻载 | G108: 22 | H108: 否 | I108: 淘金河村
A109: 107 | B109: 金河村铜厂变 | C109: 10kV | D109: 6.9 | E109: 20.70 | F109: 轻载 | G109: 134 | H109: 否 | I109: 淘金河村
A110: 108 | B110: 金河村弯山变 | C110: 10kV | D110: 12.34 | E110: 37.03 | F110: 轻载 | G110: 79 | H110: 否 | I110: 淘金河村
A111: 109 | B111: 金河村香竹岭干变 | C111: 10kV | D111: 13.08 | E111: 39.25 | F111: 轻载 | G111: 23 | H111: 否 | I111: 淘金河村
A112: 110 | B112: 金河村秧草坪变 | C112: 10kV | D112: 22.89 | E112: 68.67 | F112: 轻载 | G112: 21 | H112: 否 | I112: 淘金河村
A113: 111 | B113: 大坝村向阳寨变 | C113: 10kV | D113: 7.55 | E113: 22.66 | F113: 轻载 | G113: 262 | H113: 否 | I113: 大坝村
A114: 112 | B114: 大水沟2#变 | C114: 10kV | D114: 6.76 | E114: 20.28 | F114: 轻载 | G114: 67 | H114: 否 | I114: 大水沟村
A115: 113 | B115: 大水沟3#变 | C115: 10kV | D115: 6.27 | E115: 18.81 | F115: 轻载 | G115: 169 | H115: 否 | I115: 大水沟村
A116: 114 | B116: 大水沟村大水沟1#变 | C116: 10kV | D116: 6.23 | E116: 18.71 | F116: 轻载 | G116: 169 | H116: 否 | I116: 大水沟村
A117: 115 | B117: 大水沟村冬笋林变 | C117: 10kV | D117: 8.99 | E117: 26.96 | F117: 轻载 | G117: 131 | H117: 否 | I117: 大水沟村
A118: 116 | B118: 大水沟村烟地变 | C118: 10kV | D118: 7.03 | E118: 21.09 | F118: 轻载 | G118: 134 | H118: 否 | I118: 大水沟村
A119: 117 | B119: 官岑村沟头变 | C119: 10kV | D119: 6.67 | E119: 20.00 | F119: 轻载 | G119: 168 | H119: 否 | I119: 官岑村
A120: 118 | B120: 官岑村黄豆地变 | C120: 10kV | D120: 8.39 | E120: 25.18 | F120: 轻载 | G120: 165 | H120: 否 | I120: 官岑村
A121: 119 | B121: 官岑村松坡变 | C121: 10kV | D121: 11.6 | E121: 34.80 | F121: 轻载 | G121: 127 | H121: 否 | I121: 官岑村
A122: 120 | B122: 官岑村新寨坡1#变 | C122: 10kV | D122: 6.67 | E122: 20.00 | F122: 轻载 | G122: 168 | H122: 否 | I122: 官岑村
A123: 121 | B123: 官岑村新寨坡2#变 | C123: 10kV | D123: 6.71 | E123: 20.14 | F123: 轻载 | G123: 210 | H123: 否 | I123: 官岑村
A124: 122 | B124: 镇安村北大街1#变 | C124: 10kV | D124: 6.6 | E124: 19.80 | F124: 轻载 | G124: 265 | H124: 否 | I124: 镇安村
A125: 123 | B125: 镇安村黄连箐变 | C125: 10kV | D125: 5.24 | E125: 15.72 | F125: 轻载 | G125: 136 | H125: 否 | I125: 镇安村
A126: 124 | B126: 镇安村建行1#变 | C126: 10kV | D126: 16.93 | E126: 50.78 | F126: 轻载 | G126: 236 | H126: 否 | I126: 镇安村
A127: 125 | B127: 镇安村建行2#变 | C127: 10kV | D127: 16.83 | E127: 50.50 | F127: 轻载 | G127: 187 | H127: 否 | I127: 镇安村
A128: 126 | B128: 镇安村酒厂变 | C128: 10kV | D128: 27.84 | E128: 83.54 | F128: 轻载 | G128: 205 | H128: 否 | I128: 镇安村
A129: 127 | B129: 镇安村丽水华庭小区 | C129: 10kV | D129: 3.16 | E129: 9.49 | F129: 轻载 | G129: 436 | H129: 否 | I129: 镇安村
A130: 128 | B130: 镇安村三岔河1#变 | C130: 10kV | D130: 24.67 | E130: 74.02 | F130: 轻载 | G130: 214 | H130: 否 | I130: 镇安村
A131: 129 | B131: 镇安村三岔河2#变 | C131: 10kV | D131: 17.08 | E131: 51.25 | F131: 轻载 | G131: 149 | H131: 否 | I131: 镇安村
A132: 130 | B132: 镇安村西大街1#变 | C132: 10kV | D132: 26.76 | E132: 80.28 | F132: 轻载 | G132: 208 | H132: 否 | I132: 镇安村
A133: 131 | B133: 镇安村西大街2#变 | C133: 10kV | D133: 14.93 | E133: 44.80 | F133: 轻载 | G133: 241 | H133: 否 | I133: 镇安村
A134: 132 | B134: 镇安村西大街3#变 | C134: 10kV | D134: 21.16 | E134: 63.48 | F134: 轻载 | G134: 177 | H134: 否 | I134: 镇安村
A135: 133 | B135: 镇安村小学变 | C135: 10kV | D135: 15.75 | E135: 47.24 | F135: 轻载 | G135: 152 | H135: 否 | I135: 镇安村
A136: 134 | B136: 镇安村幼儿园1#变 | C136: 10kV | D136: 18.44 | E136: 55.34 | F136: 轻载 | G136: 231 | H136: 否 | I136: 镇安村
A137: 135 | B137: 镇安村幼儿园2#变 | C137: 10kV | D137: 16.45 | E137: 49.34 | F137: 轻载 | G137: 150 | H137: 否 | I137: 镇安村
A138: 136 | B138: 镇东村大圆子变 | C138: 10kV | D138: 5.24 | E138: 15.72 | F138: 轻载 | G138: 136 | H138: 否 | I138: 镇东村
A139: 137 | B139: 镇东村毛草地变 | C139: 10kV | D139: 11.34 | E139: 34.02 | F139: 轻载 | G139: 128 | H139: 否 | I139: 镇东村
A140: 138 | B140: 镇东村芹菜塘变 | C140: 10kV | D140: 9.23 | E140: 27.70 | F140: 轻载 | G140: 204 | H140: 否 | I140: 镇东村
A141: 139 | B141: 镇东村小烂坝变 | C141: 10kV | D141: 29.37 | E141: 88.10 | F141: 轻载 | G141: 32 | H141: 否 | I141: 镇东村
A142: 140 | B142: 镇南村双寨变 | C142: 10kV | D142: 17.04 | E142: 51.13 | F142: 轻载 | G142: 149 | H142: 否 | I142: 镇南村
A143: 141 | B143: 蛮吿村公所1#变 | C143: 10kV | D143: 7.33 | E143: 22.00 | F143: 轻载 | G143: 263 | H143: 否 | I143: 芒告村
A144: 142 | B144: 蛮吿村公所2#变 | C144: 10kV | D144: 8.49 | E144: 25.46 | F144: 轻载 | G144: 259 | H144: 否 | I144: 芒告村
A145: 143 | B145: 蛮告村大松坪变 | C145: 10kV | D145: 9.75 | E145: 29.25 | F145: 轻载 | G145: 81 | H145: 否 | I145: 芒告村
A146: 144 | B146: 蛮告村何家寨变 | C146: 10kV | D146: 8.81 | E146: 26.43 | F146: 轻载 | G146: 205 | H146: 否 | I146: 芒告村
A147: 145 | B147: 蛮告村明子山变 | C147: 10kV | D147: 10.29 | E147: 30.88 | F147: 轻载 | G147: 81 | H147: 否 | I147: 芒告村
A148: 146 | B148: 蛮告村青岩变 | C148: 10kV | D148: 13.75 | E148: 41.26 | F148: 轻载 | G148: 78 | H148: 否 | I148: 芒告村
A149: 147 | B149: 蛮告村热水塘变 | C149: 10kV | D149: 8.36 | E149: 25.08 | F149: 轻载 | G149: 165 | H149: 否 | I149: 芒告村
A150: 148 | B150: 蛮告村沙沟变 | C150: 10kV | D150: 26.96 | E150: 80.89 | F150: 轻载 | G150: 66 | H150: 否 | I150: 芒告村
A151: 149 | B151: 蛮告村杨家寨变 | C151: 10kV | D151: 8.52 | E151: 25.55 | F151: 轻载 | G151: 259 | H151: 否 | I151: 芒告村
A152: 150 | B152: 小田坝村小桃树2#变 | C152: 10kV | D152: 9.87 | E152: 29.61 | F152: 轻载 | G152: 81 | H152: 否 | I152: 小田坝村
A153: 151 | B153: 小田坝高桥变 | C153: 10kV | D153: 7.91 | E153: 23.72 | F153: 轻载 | G153: 133 | H153: 否 | I153: 小田坝村
A154: 152 | B154: 小田坝梨树坪变 | C154: 10kV | D154: 8.75 | E154: 26.25 | F154: 轻载 | G154: 25 | H154: 否 | I154: 小田坝村
A155: 153 | B155: 小田坝小桃树1#变 | C155: 10kV | D155: 6.17 | E155: 18.51 | F155: 轻载 | G155: 135 | H155: 否 | I155: 小田坝村
A156: 154 | B156: 小田坝小田坝变 | C156: 10kV | D156: 9.83 | E156: 29.48 | F156: 轻载 | G156: 256 | H156: 否 | I156: 小田坝村
A157: 155 | B157: 小田坝杨家寨1#变 | C157: 10kV | D157: 2.90 | E157: 8.71 | F157: 轻载 | G157: 275 | H157: 否 | I157: 小田坝村
A158: 156 | B158: 小田坝杨家寨2#变 | C158: 10kV | D158: 19.67 | E158: 59.00 | F158: 轻载 | G158: 36 | H158: 否 | I158: 小田坝村
A159: 157 | B159: 小田坝余家寨变 | C159: 10kV | D159: 8.16 | E159: 24.49 | F159: 轻载 | G159: 83 | H159: 否 | I159: 小田坝村
A160: 158 | B160: 小田坝张家寨变 | C160: 10kV | D160: 21.34 | E160: 64.01 | F160: 轻载 | G160: 71 | H160: 否 | I160: 小田坝村
A161: 159 | B161: 镇安村北大街2#变 | C161: 10kV | D161: 24.36 | E161: 73.09 | F161: 轻载 | G161: 214 | H161: 否 | I161: 镇安村
A162: 160 | B162: 镇安村北大街3#变 | C162: 10kV | D162: 10.81 | E162: 32.44 | F162: 轻载 | G162: 253 | H162: 否 | I162: 镇安村
A163: 161 | B163: 镇安村长滚塘变 | C163: 10kV | D163: 13.97 | E163: 41.90 | F163: 轻载 | G163: 77 | H163: 否 | I163: 镇安村
A164: 162 | B164: 镇安温泉1#变 | C164: 10kV | D164: 9.10 | E164: 27.29 | F164: 轻载 | G164: 327 | H164: 否 | I164: 镇北村
A165: 163 | B165: 镇安温泉2#变 | C165: 10kV | D165: 6.3 | E165: 18.90 | F165: 轻载 | G165: 1054 | H165: 否 | I165: 镇北村
A166: 164 | B166: 镇安温泉3#变 | C166: 10kV | D166: 2.51 | E166: 7.55 | F166: 轻载 | G166: 553 | H166: 否 | I166: 镇北村
A167: 165 | B167: 镇安温泉4#变 | C167: 10kV | D167: 1.08 | E167: 3.23 | F167: 轻载 | G167: 890 | H167: 否 | I167: 镇北村
A168: 166 | B168: 镇北村河尾变 | C168: 10kV | D168: 11.72 | E168: 35.16 | F168: 轻载 | G168: 250 | H168: 否 | I168: 镇北村
A169: 167 | B169: 镇北村老梨树变 | C169: 10kV | D169: 14.59 | E169: 43.76 | F169: 轻载 | G169: 123 | H169: 否 | I169: 镇北村
A170: 168 | B170: 镇北村小寨变 | C170: 10kV | D170: 15.86 | E170: 47.59 | F170: 轻载 | G170: 151 | H170: 否 | I170: 镇北村
A171: 169 | B171: 镇北村月亮田1#变 | C171: 10kV | D171: 14.27 | E171: 42.83 | F171: 轻载 | G171: 154 | H171: 否 | I171: 镇北村
A172: 170 | B172: 镇北村月亮田2#变 | C172: 10kV | D172: 9.59 | E172: 28.76 | F172: 轻载 | G172: 163 | H172: 否 | I172: 镇北村
A173: 171 | B173: 镇北村月亮田3#变 | C173: 10kV | D173: 25.79 | E173: 77.36 | F173: 轻载 | G173: 134 | H173: 否 | I173: 镇北村
A174: 172 | B174: 镇北村张家寨变 | C174: 10kV | D174: 14.95 | E174: 44.84 | F174: 轻载 | G174: 122 | H174: 否 | I174: 镇北村
A175: 173 | B175: 镇北村赵家寨变 | C175: 10kV | D175: 14.99 | E175: 44.96 | F175: 轻载 | G175: 241 | H175: 否 | I175: 镇北村
A176: 174 | B176: 八0八小岩子2#变 | C176: 10kV | D176: 2.21 | E176: 6.625 | F176: 轻载 | G176: 141 | H176: 否 | I176: 八0八村
A177: 175 | B177: 八0八拱洞2#变 | C177: 10kV | D177: 7.59 | E177: 22.78 | F177: 轻载 | G177: 208 | H177: 否 | I177: 八0八村
A178: 176 | B178: 金河弯山2#变 | C178: 10kV | D178: 8.63 | E178: 25.88 | F178: 轻载 | G178: 132 | H178: 否 | I178: 淘金河村
A179: 177 | B179: 2015龙江大新寨村1#变台区 | C179: 10kV | D179: =E179/3 -> 9.77 | E179: 29.32 | F179: 轻载 | G179: 65 | H179: 否 | I179: 大新寨村委会
A180: 178 | B180: 2015龙江大新寨村2#变台区 | C180: 10kV | D180: =E180/3 -> 11.21 | E180: 33.64 | F180: 轻载 | G180: 128 | H180: 否 | I180: 大新寨村委会
A181: 179 | B181: 2015龙江大新寨村大地窝变台区 | C181: 10kV | D181: =E181/3 -> 15.65 | E181: 46.96 | F181: 轻载 | G181: 190 | H181: 否 | I181: 大新寨村委会
A182: 180 | B182: 2015龙江大新寨村葛根山变台区 | C182: 10kV | D182: =E182/3 -> 4.31 | E182: 12.93 | F182: 轻载 | G182: 43 | H182: 否 | I182: 大新寨村委会
A183: 181 | B183: 2015龙江大新寨村红木树变台区 | C183: 10kV | D183: =E183/3 -> 5.38 | E183: 16.14 | F183: 轻载 | G183: 43 | H183: 否 | I183: 大新寨村委会
A184: 182 | B184: 2015龙江大新寨村绿荫塘变台区 | C184: 10kV | D184: =E184/3 -> 8.92 | E184: 26.76 | F184: 轻载 | G184: 131 | H184: 否 | I184: 大新寨村委会
A185: 183 | B185: 2015龙江大新寨村三丘田变台区 | C185: 10kV | D185: =E185/3 -> 27.41 | E185: 82.23 | F185: 轻载 | G185: 131 | H185: 否 | I185: 大新寨村委会
A186: 184 | B186: 2015龙江大新寨村簸箕田变台区 | C186: 10kV | D186: =E186/3 -> 5.58 | E186: 16.75 | F186: 轻载 | G186: 68 | H186: 否 | I186: 大新寨村委会
A187: 185 | B187: 2015龙江弄福村大绿阴塘变台区 | C187: 10kV | D187: =E187/3 -> 11.21 | E187: 33.63 | F187: 轻载 | G187: 80 | H187: 否 | I187: 弄福村委会
A188: 186 | B188: 2015龙江弄福村龙塘变台区 | C188: 10kV | D188: =E188/3 -> 6.11 | E188: 18.33 | F188: 轻载 | G188: 42 | H188: 否 | I188: 弄福村委会
A189: 187 | B189: 2015龙江弄福村麻县变台区 | C189: 10kV | D189: =E189/3 -> 9.11 | E189: 27.32 | F189: 轻载 | G189: 65 | H189: 否 | I189: 弄福村委会
A190: 188 | B190: 2015龙江弄福村弄福变台区 | C190: 10kV | D190: =E190/3 -> 27.55 | E190: 82.65 | F190: 轻载 | G190: 130 | H190: 否 | I190: 弄福村委会
A191: 189 | B191: 2015龙江弄福村席澡塘变台区 | C191: 10kV | D191: =E191/3 -> 25.88 | E191: 77.63 | F191: 轻载 | G191: 107 | H191: 否 | I191: 弄福村委会
A192: 190 | B192: 2015龙江弄福村小绿阴塘变台区 | C192: 10kV | D192: =E192/3 -> 8.99 | E192: 26.96 | F192: 轻载 | G192: 82 | H192: 否 | I192: 弄福村委会
A193: 191 | B193: 2015龙江弄福村新田变台区 | C193: 10kV | D193: =E193/3 -> 15.42 | E193: 46.25 | F193: 轻载 | G193: 152 | H193: 否 | I193: 弄福村委会
A194: 192 | B194: 2015龙江弄岗村洞弄变台区 | C194: 10kV | D194: =E194/3 -> 20.25 | E194: 60.74 | F194: 轻载 | G194: 115 | H194: 否 | I194: 弄岗村委会
A195: 193 | B195: 2015龙江弄岗村葛根寨变台区 | C195: 10kV | D195: =E195/3 -> 9.74 | E195: 29.21 | F195: 轻载 | G195: 130 | H195: 否 | I195: 弄岗村委会
A196: 194 | B196: 2015龙江弄岗村河以变台区 | C196: 10kV | D196: =E196/3 -> 15.52 | E196: 46.56 | F196: 轻载 | G196: 122 | H196: 否 | I196: 弄岗村委会
A197: 195 | B197: 2015龙江弄岗村蛮岐田变台区 | C197: 10kV | D197: =E197/3 -> 10.40 | E197: 31.21 | F197: 轻载 | G197: 65 | H197: 否 | I197: 弄岗村委会
A198: 196 | B198: 2015龙江弄岗村弄岗变台区 | C198: 10kV | D198: =E198/3 -> 32.51 | E198: 97.54 | F198: 经济运行 | G198: 191 | H198: 否 | I198: 弄岗村委会
A199: 197 | B199: 2015龙江弄岗村石沙拉变台区 | C199: 10kV | D199: =E199/3 -> 25.44 | E199: 76.32 | F199: 轻载 | G199: 211 | H199: 否 | I199: 弄岗村委会
A200: 198 | B200: 2015龙江弄岗村唐家寨变台区 | C200: 10kV | D200: =E200/3 -> 26.71 | E200: 80.12 | F200: 轻载 | G200: 208 | H200: 否 | I200: 弄岗村委会
... 1211 more rows
